[Event "*** Titled Tuesday Blitz"]
[Site "Chess.com"]
[Date "2021.02.09"]
[Round "2"]
[White "anon481216"]
[Black "krzyzan94"]
[Result "1/2-1/2"]
[WhiteElo "2479"]
[BlackElo "2688"]
[TimeControl "180+1"]
[EndTime "10:19:40 PST"]
[Termination "Game drawn - insufficient material"]

1. d4 {[%clk 0:03:00.9]} 1... Nf6 {[%clk 0:02:58.7]} 2. c4 {[%clk 0:03:01.5]}
2... d6 {[%clk 0:02:56.7]} 3. g3 {[%clk 0:03:00.4]} 3... g6 {[%clk 0:02:55.1]}
4. Bg2 {[%clk 0:03:00.3]} 4... Bg7 {[%clk 0:02:55.7]} 5. Nc3 {[%clk 0:03:00.6]}
5... O-O {[%clk 0:02:56.2]} 6. Nf3 {[%clk 0:03:01]} 6... c6 {[%clk 0:02:56]} 7.
O-O {[%clk 0:03:01.1]} 7... Qb6 {[%clk 0:02:54.9]} 8. e4 {[%clk 0:02:53.9]} 8...
Bg4 {[%clk 0:02:52.5]} 9. Rb1 {[%clk 0:02:42.9]} 9... Bxf3 {[%clk 0:02:49.7]}
10. Bxf3 {[%clk 0:02:42.1]} 10... Nfd7 {[%clk 0:02:49.9]} 11. Be3 {[%clk
0:02:41.7]} 11... c5 {[%clk 0:02:50.4]} 12. dxc5 {[%clk 0:02:34.7]} 12... dxc5
{[%clk 0:02:49.9]} 13. Bg2 {[%clk 0:02:19.1]} 13... e6 {[%clk 0:02:41]} 14. f4
{[%clk 0:02:14.7]} 14... Bd4 {[%clk 0:02:35.2]} 15. Bxd4 {[%clk 0:02:02.7]}
15... cxd4 {[%clk 0:02:36.1]} 16. Nb5 {[%clk 0:02:00.9]} 16... Nc6 {[%clk
0:02:30.6]} 17. e5 {[%clk 0:01:15]} 17... Rad8 {[%clk 0:02:25.9]} 18. b4 {[%clk
0:01:11.3]} 18... a6 {[%clk 0:02:12.2]} 19. Nd6 {[%clk 0:01:10.7]} 19... a5
{[%clk 0:01:59.9]} 20. c5 {[%clk 0:01:10.4]} 20... Qa7 {[%clk 0:01:59]} 21. a3
{[%clk 0:01:10.8]} 21... axb4 {[%clk 0:01:54.5]} 22. axb4 {[%clk 0:01:10.4]}
22... Qa3 {[%clk 0:01:54.6]} 23. Kh1 {[%clk 0:01:02.9]} 23... Nxb4 {[%clk
0:01:46.2]} 24. Qxd4 {[%clk 0:01:01.5]} 24... Nc6 {[%clk 0:01:41]} 25. Qb2
{[%clk 0:00:57.2]} 25... Qxb2 {[%clk 0:01:40.4]} 26. Rxb2 {[%clk 0:00:57.5]}
26... Nxc5 {[%clk 0:01:41.3]} 27. Nxb7 {[%clk 0:00:56.7]} 27... Nxb7 {[%clk
0:01:38.3]} 28. Rxb7 {[%clk 0:00:56]} 28... Nd4 {[%clk 0:01:36.9]} 29. Rbb1
{[%clk 0:00:56.2]} 29... h5 {[%clk 0:01:35.9]} 30. Rfd1 {[%clk 0:00:52.3]} 30...
Nf5 {[%clk 0:01:34.6]} 31. Be4 {[%clk 0:00:48.9]} 31... Ne3 {[%clk 0:01:33.5]}
32. Re1 {[%clk 0:00:48.6]} 32... Ng4 {[%clk 0:01:29.6]} 33. Bf3 {[%clk
0:00:48.2]} 33... Nh6 {[%clk 0:01:27.9]} 34. Rbd1 {[%clk 0:00:47.5]} 34... Kg7
{[%clk 0:01:27.7]} 35. Rxd8 {[%clk 0:00:46.8]} 35... Rxd8 {[%clk 0:01:28.6]} 36.
Re2 {[%clk 0:00:45.8]} 36... Rd3 {[%clk 0:01:27.9]} 37. Be4 {[%clk 0:00:45.4]}
37... Rc3 {[%clk 0:01:26.1]} 38. Kg2 {[%clk 0:00:44.6]} 38... Ng4 {[%clk
0:01:26.2]} 39. h3 {[%clk 0:00:40.5]} 39... Ne3+ {[%clk 0:01:23.1]} 40. Kf2
{[%clk 0:00:36.2]} 40... Nc4 {[%clk 0:00:40.3]} 41. Rc2 {[%clk 0:00:34.2]} 41...
Rxc2+ {[%clk 0:00:39]} 42. Bxc2 {[%clk 0:00:34.7]} 42... Nb6 {[%clk 0:00:38.3]}
43. Bd3 {[%clk 0:00:34.3]} 43... Nd5 {[%clk 0:00:38.3]} 44. Be4 {[%clk
0:00:34.5]} 44... Nc3 {[%clk 0:00:38.2]} 45. Bd3 {[%clk 0:00:34.7]} 45... Kh6
{[%clk 0:00:32]} 46. h4 {[%clk 0:00:33.8]} 46... Kg7 {[%clk 0:00:31.5]} 47. Kf3
{[%clk 0:00:34]} 47... Kf8 {[%clk 0:00:32]} 48. Ke3 {[%clk 0:00:34.4]} 48... Ke7
{[%clk 0:00:30.3]} 49. Kd4 {[%clk 0:00:33.6]} 49... Nd1 {[%clk 0:00:28.2]} 50.
Be2 {[%clk 0:00:27.8]} 50... Nb2 {[%clk 0:00:23.3]} 51. Kc5 {[%clk 0:00:21.8]}
51... Na4+ {[%clk 0:00:22.5]} 52. Kb4 {[%clk 0:00:20.9]} 52... Nb6 {[%clk
0:00:22.5]} 53. Bf3 {[%clk 0:00:20.9]} 53... Nd7 {[%clk 0:00:20.9]} 54. Kc4
{[%clk 0:00:20.5]} 54... f6 {[%clk 0:00:19.1]} 55. exf6+ {[%clk 0:00:20.5]}
55... Kxf6 {[%clk 0:00:19.4]} 56. Kd4 {[%clk 0:00:21.1]} 56... Nb6 {[%clk
0:00:16.5]} 57. Be4 {[%clk 0:00:20.6]} 57... Nc8 {[%clk 0:00:15.3]} 58. Bd3
{[%clk 0:00:20.8]} 58... Ne7 {[%clk 0:00:14.3]} 59. Ke3 {[%clk 0:00:20.4]} 59...
Nd5+ {[%clk 0:00:13.3]} 60. Ke4 {[%clk 0:00:19.8]} 60... Nb4 {[%clk 0:00:10.7]}
61. Bc4 {[%clk 0:00:18.9]} 61... Nc6 {[%clk 0:00:10]} 62. Ke3 {[%clk 0:00:19.1]}
62... Ne7 {[%clk 0:00:10]} 63. Bd3 {[%clk 0:00:16.7]} 63... e5 {[%clk
0:00:04.9]} 64. fxe5+ {[%clk 0:00:16]} 64... Kxe5 {[%clk 0:00:05.8]} 65. Be4
{[%clk 0:00:16.5]} 65... Nf5+ {[%clk 0:00:02.9]} 66. Bxf5 {[%clk 0:00:16.1]}
66... Kxf5 {[%clk 0:00:03.4]} 67. Kf3 {[%clk 0:00:16.7]} 67... Ke5 {[%clk
0:00:03.7]} 68. Ke3 {[%clk 0:00:16.7]} 68... Kf5 {[%clk 0:00:03.9]} 69. Kf3
{[%clk 0:00:17]} 69... g5 {[%clk 0:00:04.1]} 70. hxg5 {[%clk 0:00:16.8]} 70...
Kxg5 {[%clk 0:00:05]} 71. Kf2 {[%clk 0:00:17.1]} 71... Kg4 {[%clk 0:00:05.3]}
72. Kg2 {[%clk 0:00:17.5]} 72... h4 {[%clk 0:00:06.2]} 73. gxh4 {[%clk
0:00:17.6]} 73... Kxh4 {[%clk 0:00:07.1]} 1/2-1/2

[Event "*** Titled Tuesday Blitz"]
[Site "Chess.com"]
[Date "2021.02.09"]
[Round "2"]
[White "Aslanov_Umid"]
[Black "Kovalchuk94"]
[Result "0-1"]
[WhiteElo "2341"]
[BlackElo "2643"]
[TimeControl "180+1"]
[EndTime "10:19:42 PST"]
[Termination "Kovalchuk94 won by resignation"]

1. e4 {[%clk 0:03:00.9]} 1... e5 {[%clk 0:02:59.6]} 2. Nf3 {[%clk 0:02:59.9]}
2... d5 {[%clk 0:02:59.9]} 3. exd5 {[%clk 0:02:58.5]} 3... Bd6 {[%clk
0:03:00.2]} 4. Nc3 {[%clk 0:02:57.8]} 4... Nf6 {[%clk 0:03:00.2]} 5. d4 {[%clk
0:02:55]} 5... e4 {[%clk 0:03:00.5]} 6. Ne5 {[%clk 0:02:54.7]} 6... O-O {[%clk
0:02:58.9]} 7. Bg5 {[%clk 0:02:53.6]} 7... Qe8 {[%clk 0:02:51.1]} 8. Bxf6 {[%clk
0:02:51.1]} 8... gxf6 {[%clk 0:02:51]} 9. Nxe4 {[%clk 0:02:51.7]} 9... Nd7
{[%clk 0:02:48.3]} 10. Bb5 {[%clk 0:02:35.8]} 10... Bxe5 {[%clk 0:02:32.4]} 11.
dxe5 {[%clk 0:02:29.4]} 11... Qxe5 {[%clk 0:02:30.2]} 12. Qg4+ {[%clk
0:02:29.9]} 12... Kh8 {[%clk 0:02:29.6]} 13. Qe2 {[%clk 0:02:13.7]} 13... Qxb2
{[%clk 0:01:49.5]} 14. O-O {[%clk 0:02:10.6]} 14... Re8 {[%clk 0:01:45.6]} 15.
Bxd7 {[%clk 0:01:58.4]} 15... Bxd7 {[%clk 0:01:45.6]} 16. Qf3 {[%clk 0:01:59.3]}
16... f5 {[%clk 0:01:39.4]} 17. Ng5 {[%clk 0:01:37.4]} 17... Qg7 {[%clk
0:01:31.4]} 18. Qh5 {[%clk 0:01:37.6]} 18... Kg8 {[%clk 0:01:25.4]} 19. Rae1
{[%clk 0:01:15.5]} 19... Bb5 {[%clk 0:01:10.9]} 20. Rxe8+ {[%clk 0:00:55.8]}
20... Rxe8 {[%clk 0:01:11.8]} 21. Rb1 {[%clk 0:00:56.4]} 21... h6 {[%clk
0:01:05.4]} 22. Nf3 {[%clk 0:00:41.5]} 22... Bd7 {[%clk 0:00:59.3]} 23. h3
{[%clk 0:00:35.8]} 23... b6 {[%clk 0:00:59.1]} 24. Qh4 {[%clk 0:00:29.4]} 24...
Kh7 {[%clk 0:00:48.7]} 25. Qf4 {[%clk 0:00:28]} 25... Qc3 {[%clk 0:00:41.4]} 26.
Kh2 {[%clk 0:00:24.8]} 26... Re4 {[%clk 0:00:37.3]} 27. Qg3 {[%clk 0:00:22.6]}
27... Qxc2 {[%clk 0:00:19.7]} 28. Rb3 {[%clk 0:00:17.5]} 28... Qxa2 {[%clk
0:00:17.5]} 29. Rc3 {[%clk 0:00:11.7]} 29... Qxd5 {[%clk 0:00:15.3]} 30. Qxc7
{[%clk 0:00:09]} 30... Be6 {[%clk 0:00:10.7]} 31. Qxa7 {[%clk 0:00:07.9]} 31...
b5 {[%clk 0:00:10.3]} 32. Qc5 {[%clk 0:00:05.9]} 32... Qxc5 {[%clk 0:00:07.4]}
33. Rxc5 {[%clk 0:00:06.8]} 33... b4 {[%clk 0:00:08]} 34. Rb5 {[%clk 0:00:07.3]}
34... b3 {[%clk 0:00:08.5]} 35. Nd2 {[%clk 0:00:07]} 35... Re2 {[%clk
0:00:08.8]} 36. Nxb3 {[%clk 0:00:06.6]} 36... Rxf2 {[%clk 0:00:08.8]} 37. Nd4
{[%clk 0:00:06.5]} 37... Kg6 {[%clk 0:00:08.3]} 38. Kg3 {[%clk 0:00:04.6]} 38...
Rd2 {[%clk 0:00:07.6]} 39. Nf3 {[%clk 0:00:04.4]} 39... Rd3 {[%clk 0:00:07.5]}
40. Kf4 {[%clk 0:00:04.9]} 40... Kf6 {[%clk 0:00:07.3]} 41. Rb8 {[%clk
0:00:04.9]} 41... Ra3 {[%clk 0:00:06.9]} 42. Rh8 {[%clk 0:00:04.8]} 42... Kg7
{[%clk 0:00:06.9]} 43. Rb8 {[%clk 0:00:04.4]} 43... Ra2 {[%clk 0:00:07.3]} 44.
Kg3 {[%clk 0:00:03.7]} 44... f4+ {[%clk 0:00:06.9]} 45. Kxf4 {[%clk 0:00:04.3]}
45... Rxg2 {[%clk 0:00:06.5]} 46. h4 {[%clk 0:00:05.2]} 46... Rg4+ {[%clk
0:00:06.1]} 47. Ke3 {[%clk 0:00:04.8]} 47... Bd5 {[%clk 0:00:05.8]} 48. Nd4
{[%clk 0:00:02.8]} 48... Re4+ {[%clk 0:00:04.9]} 49. Kd3 {[%clk 0:00:02.7]}
49... Rf4 {[%clk 0:00:04.5]} 50. Rd8 {[%clk 0:00:02.1]} 50... Be6 {[%clk
0:00:03.6]} 51. Ke3 {[%clk 0:00:03]} 51... Rxh4 {[%clk 0:00:03.3]} 52. Rb8
{[%clk 0:00:03]} 52... Kf6 {[%clk 0:00:03.7]} 53. Rb6 {[%clk 0:00:02.7]} 53...
Rh3+ {[%clk 0:00:04.1]} 54. Ke4 {[%clk 0:00:03]} 54... Rh4+ {[%clk 0:00:05]} 55.
Ke3 {[%clk 0:00:03.6]} 55... h5 {[%clk 0:00:05.9]} 56. Rb8 {[%clk 0:00:01.6]}
56... Rh3+ {[%clk 0:00:06.3]} 57. Ke4 {[%clk 0:00:01.8]} 57... h4 {[%clk
0:00:06.4]} 58. Rh8 {[%clk 0:00:01.5]} 58... Rh1 {[%clk 0:00:06.8]} 59. Rh6+
{[%clk 0:00:02]} 59... Kg7 {[%clk 0:00:07.2]} 60. Rh5 {[%clk 0:00:01.2]} 60...
h3 {[%clk 0:00:07]} 61. Rg5+ {[%clk 0:00:01.5]} 61... Kf6 {[%clk 0:00:07.4]} 62.
Rg3 {[%clk 0:00:02.2]} 62... h2 {[%clk 0:00:07.8]} 63. Rf3+ {[%clk 0:00:02.6]}
63... Ke7 {[%clk 0:00:07.8]} 64. Rf2 {[%clk 0:00:01.3]} 64... Re1+ {[%clk
0:00:07.5]} 0-1

[Event "*** Titled Tuesday Blitz"]
[Site "Chess.com"]
[Date "2021.02.09"]
[Round "2"]
[White "AsaHoffmann"]
[Black "miredenizdogan"]
[Result "0-1"]
[WhiteElo "2396"]
[BlackElo "2226"]
[TimeControl "180+1"]
[EndTime "10:19:45 PST"]
[Termination "miredenizdogan won on time"]

1. d4 {[%clk 0:02:59]} 1... d5 {[%clk 0:02:59.7]} 2. Bg5 {[%clk 0:02:57.5]} 2...
c5 {[%clk 0:02:57.3]} 3. dxc5 {[%clk 0:02:56.4]} 3... Nc6 {[%clk 0:02:54.8]} 4.
c3 {[%clk 0:02:54.3]} 4... f6 {[%clk 0:02:52.9]} 5. Bh4 {[%clk 0:02:53.5]} 5...
a5 {[%clk 0:02:48.9]} 6. e4 {[%clk 0:02:51.9]} 6... dxe4 {[%clk 0:02:46.4]} 7.
Qxd8+ {[%clk 0:02:45.6]} 7... Nxd8 {[%clk 0:02:46.2]} 8. Na3 {[%clk 0:02:43.8]}
8... e5 {[%clk 0:02:44.8]} 9. Nb5 {[%clk 0:02:39.4]} 9... Kf7 {[%clk 0:02:44.6]}
10. Nd6+ {[%clk 0:02:34.7]} 10... Bxd6 {[%clk 0:02:40.2]} 11. cxd6 {[%clk
0:02:34.3]} 11... Be6 {[%clk 0:02:39.6]} 12. Bg3 {[%clk 0:02:01.2]} 12... Nc6
{[%clk 0:02:31.1]} 13. Bb5 {[%clk 0:01:59.9]} 13... Rd8 {[%clk 0:02:29.6]} 14.
O-O-O {[%clk 0:01:57]} 14... Nh6 {[%clk 0:02:11.5]} 15. Ne2 {[%clk 0:01:55.1]}
15... Nf5 {[%clk 0:02:09.6]} 16. b3 {[%clk 0:01:50.7]} 16... Na7 {[%clk
0:01:54.8]} 17. c4 {[%clk 0:01:41.2]} 17... Nxb5 {[%clk 0:01:50.8]} 18. cxb5
{[%clk 0:01:40.7]} 18... Rxd6 {[%clk 0:01:38.3]} 19. Nc3 {[%clk 0:01:39.7]}
19... Rxd1+ {[%clk 0:01:27.9]} 20. Rxd1 {[%clk 0:01:38.9]} 20... Rc8 {[%clk
0:01:15.5]} 21. Kb2 {[%clk 0:01:38.5]} 21... Nd4 {[%clk 0:01:15.8]} 22. Nxe4
{[%clk 0:01:29.7]} 22... Rc2+ {[%clk 0:01:08]} 23. Kb1 {[%clk 0:01:26.4]} 23...
Re2 {[%clk 0:00:58.2]} 24. f3 {[%clk 0:01:00.3]} 24... Bf5 {[%clk 0:00:57.4]}
25. Rg1 {[%clk 0:00:39.6]} 25... Nxb5 {[%clk 0:00:56.5]} 26. Rc1 {[%clk
0:00:29.3]} 26... Bxe4+ {[%clk 0:00:51.1]} 27. fxe4 {[%clk 0:00:28.8]} 27...
Rxe4 {[%clk 0:00:50.6]} 28. a4 {[%clk 0:00:24.9]} 28... Nd4 {[%clk 0:00:38.9]}
29. Rc7+ {[%clk 0:00:23.8]} 29... Kg6 {[%clk 0:00:39.4]} 30. Rxb7 {[%clk
0:00:23.7]} 30... Re2 {[%clk 0:00:36.5]} 31. b4 {[%clk 0:00:21.6]} 31... axb4
{[%clk 0:00:36.1]} 32. Rxb4 {[%clk 0:00:21.2]} 32... h5 {[%clk 0:00:34.8]} 33.
a5 {[%clk 0:00:20.4]} 33... Nc6 {[%clk 0:00:34.3]} 34. Ra4 {[%clk 0:00:17.4]}
34... Rxg2 {[%clk 0:00:32.2]} 35. a6 {[%clk 0:00:16.6]} 35... f5 {[%clk
0:00:32.7]} 36. a7 {[%clk 0:00:15.8]} 36... Nxa7 {[%clk 0:00:33]} 37. Bxe5
{[%clk 0:00:15.3]} 37... Nb5 {[%clk 0:00:30.6]} 38. Ra5 {[%clk 0:00:13.3]} 38...
Re2 {[%clk 0:00:15.7]} 39. Rxb5 {[%clk 0:00:12.7]} 39... Kg5 {[%clk 0:00:15.1]}
40. Kc1 {[%clk 0:00:12.6]} 40... g6 {[%clk 0:00:15.2]} 41. Kd1 {[%clk
0:00:12.5]} 41... Ra2 {[%clk 0:00:14.9]} 42. Bg3 {[%clk 0:00:11.5]} 42... Ra4
{[%clk 0:00:13.3]} 43. Bf2 {[%clk 0:00:11.2]} 43... Kg4 {[%clk 0:00:13]} 44. Rb2
{[%clk 0:00:10.1]} 44... f4 {[%clk 0:00:13.2]} 45. Ke2 {[%clk 0:00:09.8]} 45...
g5 {[%clk 0:00:13.7]} 46. Rc2 {[%clk 0:00:09.2]} 46... Re4+ {[%clk 0:00:12.5]}
47. Kf1 {[%clk 0:00:09]} 47... Ra4 {[%clk 0:00:12.6]} 48. Rc1 {[%clk 0:00:08.9]}
48... Ra3 {[%clk 0:00:13]} 49. Rd1 {[%clk 0:00:09]} 49... Kf3 {[%clk 0:00:13.5]}
50. Rc1 {[%clk 0:00:08.7]} 50... g4 {[%clk 0:00:13.8]} 51. Rd1 {[%clk
0:00:07.8]} 51... h4 {[%clk 0:00:13.4]} 52. Kg1 {[%clk 0:00:07.5]} 52... g3
{[%clk 0:00:13.7]} 53. hxg3 {[%clk 0:00:07.3]} 53... hxg3 {[%clk 0:00:14]} 54.
Be1 {[%clk 0:00:07.3]} 54... Re3 {[%clk 0:00:12.9]} 55. Rc1 {[%clk 0:00:07.2]}
55... Rb3 {[%clk 0:00:12.3]} 56. Rd1 {[%clk 0:00:07.1]} 56... Ke2 {[%clk
0:00:12.8]} 57. Rc1 {[%clk 0:00:06.8]} 57... f3 {[%clk 0:00:13.3]} 58. Bxg3
{[%clk 0:00:06.7]} 58... Rb5 {[%clk 0:00:11.6]} 59. Bf2 {[%clk 0:00:06.4]} 59...
Rg5+ {[%clk 0:00:11.5]} 60. Bg3 {[%clk 0:00:06.3]} 60... Rxg3+ {[%clk
0:00:11.2]} 61. Kh2 {[%clk 0:00:06.3]} 61... Rg2+ {[%clk 0:00:11.5]} 62. Kh3
{[%clk 0:00:06.4]} 62... Rg8 {[%clk 0:00:12]} 63. Rc2+ {[%clk 0:00:05.6]} 63...
Ke3 {[%clk 0:00:10]} 64. Rc3+ {[%clk 0:00:05.6]} 64... Ke4 {[%clk 0:00:08.4]}
65. Rc4+ {[%clk 0:00:05.4]} 65... Kd3 {[%clk 0:00:08.9]} 66. Rf4 {[%clk
0:00:04.9]} 66... Ke3 {[%clk 0:00:08.4]} 67. Rf7 {[%clk 0:00:04.7]} 67... f2
{[%clk 0:00:08.3]} 68. Re7+ {[%clk 0:00:04.4]} 68... Kd2 {[%clk 0:00:08.4]} 69.
Kh2 {[%clk 0:00:03.8]} 69... f1=Q {[%clk 0:00:07.1]} 0-1

[Event "*** Titled Tuesday Blitz"]
[Site "Chess.com"]
[Date "2021.02.09"]
[Round "2"]
[White "hypert"]
[Black "iwanyu"]
[Result "1/2-1/2"]
[WhiteElo "2515"]
[BlackElo "2811"]
[TimeControl "180+1"]
[EndTime "10:19:54 PST"]
[Termination "Game drawn by repetition"]

1. e4 {[%clk 0:03:00.9]} 1... e5 {[%clk 0:02:59.2]} 2. Nc3 {[%clk 0:03:01.8]}
2... Nf6 {[%clk 0:02:57.8]} 3. Nf3 {[%clk 0:03:01.8]} 3... Nc6 {[%clk
0:02:57.7]} 4. d4 {[%clk 0:03:02]} 4... exd4 {[%clk 0:02:57]} 5. Nxd4 {[%clk
0:03:02.9]} 5... Bb4 {[%clk 0:02:53.5]} 6. Nxc6 {[%clk 0:03:03.2]} 6... bxc6
{[%clk 0:02:52.7]} 7. Bd3 {[%clk 0:03:03.7]} 7... O-O {[%clk 0:02:52.6]} 8. O-O
{[%clk 0:03:03.1]} 8... d5 {[%clk 0:02:53]} 9. Bd2 {[%clk 0:03:02.5]} 9... Bd6
{[%clk 0:02:51.6]} 10. h3 {[%clk 0:02:47.9]} 10... Re8 {[%clk 0:02:49.9]} 11.
Re1 {[%clk 0:02:47.7]} 11... Be5 {[%clk 0:02:50]} 12. Qf3 {[%clk 0:02:43]} 12...
h6 {[%clk 0:02:41.6]} 13. Rad1 {[%clk 0:02:23]} 13... Rb8 {[%clk 0:02:37.7]} 14.
b3 {[%clk 0:02:21.3]} 14... Qd6 {[%clk 0:02:31.5]} 15. exd5 {[%clk 0:02:14.1]}
15... cxd5 {[%clk 0:02:32.4]} 16. Nb5 {[%clk 0:02:01.1]} 16... Qb6 {[%clk
0:02:26.1]} 17. Be3 {[%clk 0:01:47.7]} 17... c5 {[%clk 0:02:16.9]} 18. Bf4
{[%clk 0:01:36]} 18... Bxf4 {[%clk 0:02:09.6]} 19. Rxe8+ {[%clk 0:01:36.9]}
19... Nxe8 {[%clk 0:02:09.8]} 20. Qxf4 {[%clk 0:01:37.1]} 20... Be6 {[%clk
0:02:04.5]} 21. c4 {[%clk 0:01:31.5]} 21... Rd8 {[%clk 0:02:01.6]} 22. Nc3
{[%clk 0:01:19]} 22... dxc4 {[%clk 0:02:01.4]} 23. Bxc4 {[%clk 0:01:18.6]} 23...
Rxd1+ {[%clk 0:01:52.2]} 24. Nxd1 {[%clk 0:01:16.7]} 24... Bxc4 {[%clk
0:01:47.7]} 25. Qxc4 {[%clk 0:01:16.1]} 25... Nd6 {[%clk 0:01:48.2]} 26. Qd5
{[%clk 0:01:14.5]} 26... Nb5 {[%clk 0:01:47.9]} 27. Ne3 {[%clk 0:01:09.9]} 27...
Nd4 {[%clk 0:01:46]} 28. Nf5 {[%clk 0:01:01.9]} 28... Ne2+ {[%clk 0:01:37.4]}
29. Kh2 {[%clk 0:00:55.5]} 29... Nf4 {[%clk 0:01:17.6]} 30. Qa8+ {[%clk
0:00:46]} 30... Kh7 {[%clk 0:01:17.1]} 31. Ne7 {[%clk 0:00:38.7]} 31... h5
{[%clk 0:01:14.3]} 32. Qg8+ {[%clk 0:00:34]} 32... Kh6 {[%clk 0:01:14.4]} 33.
Qh8+ {[%clk 0:00:29.3]} 33... Kg5 {[%clk 0:01:14.4]} 34. Qxg7+ {[%clk
0:00:29.9]} 34... Ng6 {[%clk 0:01:15]} 35. h4+ {[%clk 0:00:20.5]} 35... Kxh4
{[%clk 0:01:10.2]} 36. Nxg6+ {[%clk 0:00:19.2]} 36... Qxg6 {[%clk 0:00:58.3]}
37. g3+ {[%clk 0:00:19.4]} 37... Kg4 {[%clk 0:00:55.9]} 38. Qe5 {[%clk
0:00:19.9]} 38... Qf5 {[%clk 0:00:48.5]} 39. f3+ {[%clk 0:00:17.8]} 39... Kg5
{[%clk 0:00:41.4]} 40. Qg7+ {[%clk 0:00:16.4]} 40... Qg6 {[%clk 0:00:41.1]} 41.
Qe5+ {[%clk 0:00:13.8]} 41... Qf5 {[%clk 0:00:37.2]} 42. Qg7+ {[%clk 0:00:11.9]}
42... Qg6 {[%clk 0:00:37.5]} 43. f4+ {[%clk 0:00:10]} 43... Kg4 {[%clk
0:00:37.1]} 44. Qb2 {[%clk 0:00:08.7]} 44... Qd3 {[%clk 0:00:34.7]} 45. Qg2
{[%clk 0:00:07.6]} 45... Kf5 {[%clk 0:00:31]} 46. Qh3+ {[%clk 0:00:07.6]} 46...
Kg6 {[%clk 0:00:31.4]} 47. Qg2 {[%clk 0:00:06.7]} 47... f6 {[%clk 0:00:28.5]}
48. Qf2 {[%clk 0:00:06.4]} 48... Qc3 {[%clk 0:00:25.8]} 49. Qe2 {[%clk
0:00:05.5]} 49... Qd4 {[%clk 0:00:18.6]} 50. Kh3 {[%clk 0:00:05.5]} 50... Qd7+
{[%clk 0:00:18.4]} 51. Kh2 {[%clk 0:00:05.4]} 51... Qd5 {[%clk 0:00:15.8]} 52.
Qc2+ {[%clk 0:00:03.8]} 52... Qf5 {[%clk 0:00:14.8]} 53. Qe2 {[%clk 0:00:04.7]}
53... h4 {[%clk 0:00:14.7]} 54. gxh4 {[%clk 0:00:03.8]} 54... Qxf4+ {[%clk
0:00:15]} 55. Kh3 {[%clk 0:00:04.4]} 55... Kh6 {[%clk 0:00:13.7]} 56. Qg4 {[%clk
0:00:04.6]} 56... Qe3+ {[%clk 0:00:12.6]} 57. Qg3 {[%clk 0:00:04.8]} 57... Qe6+
{[%clk 0:00:10.8]} 58. Qg4 {[%clk 0:00:04.3]} 58... Qe3+ {[%clk 0:00:11.2]} 59.
Qg3 {[%clk 0:00:04.8]} 59... Qe6+ {[%clk 0:00:11.5]} 60. Qg4 {[%clk 0:00:05.3]}
60... f5 {[%clk 0:00:12.2]} 61. Qf4+ {[%clk 0:00:05.2]} 61... Kh7 {[%clk
0:00:11.8]} 62. Qg5 {[%clk 0:00:05.7]} 62... f4+ {[%clk 0:00:11.3]} 63. Kg2
{[%clk 0:00:05.2]} 63... Qe2+ {[%clk 0:00:11.1]} 64. Kh3 {[%clk 0:00:04.3]}
64... Qf3+ {[%clk 0:00:11.4]} 65. Kh2 {[%clk 0:00:04.8]} 65... Qf2+ {[%clk
0:00:10.1]} 66. Kh3 {[%clk 0:00:05.2]} 66... Qf3+ {[%clk 0:00:09.6]} 67. Kh2
{[%clk 0:00:05.7]} 67... Qe4 {[%clk 0:00:09.3]} 68. Qh5+ {[%clk 0:00:05.2]}
68... Kg7 {[%clk 0:00:09.3]} 69. Qg5+ {[%clk 0:00:05.7]} 69... Kh7 {[%clk
0:00:09.8]} 70. h5 {[%clk 0:00:06.3]} 70... Qe2+ {[%clk 0:00:09.2]} 71. Kh3
{[%clk 0:00:06.4]} 71... Qf3+ {[%clk 0:00:09.1]} 72. Kh2 {[%clk 0:00:06.4]}
72... Qf2+ {[%clk 0:00:07.4]} 73. Kh3 {[%clk 0:00:06.8]} 73... Qf3+ {[%clk
0:00:07.7]} 74. Kh2 {[%clk 0:00:07.2]} 74... Qf2+ {[%clk 0:00:08]} 75. Kh3
{[%clk 0:00:07.6]} 75... Qf3+ {[%clk 0:00:08.6]} 1/2-1/2